[Event "Early-Titled-Tuesday-Blitz-May-28-2024"]
[Site "Chess.com"]
[Date "2024.05.28"]
[Round "1"]
[White "klercaku"]
[Black "ansko1999"]
[Result "1/2-1/2"]
[WhiteElo "2288"]
[BlackElo "2599"]
[TimeControl "180+1"]
[EndTime "8:08:35 PDT"]
[Termination "Game drawn - insufficient material"]

1. e4 {[%clk 0:02:59.8]} 1... c5 {[%clk 0:02:59.5]} 2. Nf3 {[%clk 0:02:58]} 2...
Nf6 {[%clk 0:02:59.9]} 3. Nc3 {[%clk 0:02:56.4]} 3... d5 {[%clk 0:02:59]} 4.
exd5 {[%clk 0:02:55.2]} 4... Nxd5 {[%clk 0:02:58.8]} 5. d4 {[%clk 0:02:52.5]}
5... Nxc3 {[%clk 0:02:41.4]} 6. bxc3 {[%clk 0:02:53.4]} 6... cxd4 {[%clk
0:02:41.4]} 7. cxd4 {[%clk 0:02:51.6]} 7... g6 {[%clk 0:02:39.2]} 8. Bc4 {[%clk
0:02:45.7]} 8... Bg7 {[%clk 0:02:36]} 9. c3 {[%clk 0:02:37.6]} 9... O-O {[%clk
0:02:35.4]} 10. O-O {[%clk 0:02:36.1]} 10... Qc7 {[%clk 0:02:33.8]} 11. Qb3
{[%clk 0:02:25.3]} 11... Nc6 {[%clk 0:02:18.5]} 12. Qc2 {[%clk 0:01:30.8]} 12...
Bf5 {[%clk 0:02:14]} 13. Bd3 {[%clk 0:01:28.4]} 13... Nb4 {[%clk 0:02:10.5]} 14.
cxb4 {[%clk 0:01:26.5]} 14... Qxc2 {[%clk 0:02:11.4]} 15. Bxc2 {[%clk
0:01:25.9]} 15... Bxc2 {[%clk 0:02:11.3]} 16. Be3 {[%clk 0:01:15.6]} 16... Be4
{[%clk 0:02:07]} 17. Nd2 {[%clk 0:01:12.4]} 17... Bd5 {[%clk 0:02:06.3]} 18.
Rac1 {[%clk 0:01:04.6]} 18... Rfc8 {[%clk 0:02:03.1]} 19. a3 {[%clk 0:01:00.5]}
19... b6 {[%clk 0:01:55.2]} 20. Rfe1 {[%clk 0:00:44.7]} 20... Bf6 {[%clk
0:01:50.7]} 21. f3 {[%clk 0:00:41.6]} 21... Kf8 {[%clk 0:01:45.2]} 22. Ne4
{[%clk 0:00:41.5]} 22... Bg7 {[%clk 0:01:39.2]} 23. Nc3 {[%clk 0:00:36.1]} 23...
Bc4 {[%clk 0:01:32]} 24. Ne4 {[%clk 0:00:33.6]} 24... h6 {[%clk 0:01:28]} 25.
Rc3 {[%clk 0:00:30.5]} 25... Be6 {[%clk 0:01:24.1]} 26. Rec1 {[%clk 0:00:30.2]}
26... Rxc3 {[%clk 0:01:22.6]} 27. Rxc3 {[%clk 0:00:31.1]} 27... Rc8 {[%clk
0:01:22.6]} 28. Rxc8+ {[%clk 0:00:28.5]} 28... Bxc8 {[%clk 0:01:23.5]} 29. Kf1
{[%clk 0:00:27.5]} 29... Ba6+ {[%clk 0:01:20]} 30. Ke1 {[%clk 0:00:26.9]} 30...
Ke8 {[%clk 0:01:20.5]} 31. Kd2 {[%clk 0:00:24]} 31... Bc4 {[%clk 0:01:17.3]} 32.
Kc3 {[%clk 0:00:21.1]} 32... Bd5 {[%clk 0:01:17.6]} 33. Bf4 {[%clk 0:00:16.9]}
33... Kd7 {[%clk 0:01:14.8]} 34. b5 {[%clk 0:00:13.4]} 34... f5 {[%clk
0:01:08.5]} 35. Nd2 {[%clk 0:00:11.8]} 35... e6 {[%clk 0:01:01.9]} 36. Bb8
{[%clk 0:00:11.6]} 36... Kc8 {[%clk 0:01:01.1]} 37. Bf4 {[%clk 0:00:07.4]} 37...
g5 {[%clk 0:01:00.3]} 38. Bd6 {[%clk 0:00:07.7]} 38... Kd7 {[%clk 0:00:59.2]}
39. Bb8 {[%clk 0:00:07.5]} 39... Kc8 {[%clk 0:00:59.2]} 40. Bd6 {[%clk
0:00:08.1]} 40... h5 {[%clk 0:00:57.1]} 41. Nc4 {[%clk 0:00:07.8]} 41... g4
{[%clk 0:00:48.9]} 42. fxg4 {[%clk 0:00:06.2]} 42... hxg4 {[%clk 0:00:48.3]} 43.
g3 {[%clk 0:00:06.4]} 43... Bh6 {[%clk 0:00:41.2]} 44. Nd2 {[%clk 0:00:03]}
44... Be3 {[%clk 0:00:38.9]} 45. Be5 {[%clk 0:00:02.4]} 45... Kb7 {[%clk
0:00:36.9]} 46. Nf1 {[%clk 0:00:01.9]} 46... Bf2 {[%clk 0:00:36.6]} 47. Nd2
{[%clk 0:00:02.1]} 47... Bg1 {[%clk 0:00:35.3]} 48. Nc4 {[%clk 0:00:02.4]} 48...
Bxc4 {[%clk 0:00:24.4]} 49. Kxc4 {[%clk 0:00:02.5]} 49... Bxh2 {[%clk 0:00:25]}
50. d5 {[%clk 0:00:02.5]} 50... exd5+ {[%clk 0:00:24.2]} 51. Kxd5 {[%clk
0:00:03.4]} 51... a6 {[%clk 0:00:12.9]} 52. bxa6+ {[%clk 0:00:03.2]} 52... Kxa6
{[%clk 0:00:13.8]} 53. Ke6 {[%clk 0:00:03.7]} 53... Kb5 {[%clk 0:00:11.7]} 54.
Kxf5 {[%clk 0:00:03.6]} 54... Ka4 {[%clk 0:00:12.4]} 55. Bd6 {[%clk 0:00:03.4]}
55... Bg1 {[%clk 0:00:05.8]} 56. Kxg4 {[%clk 0:00:03.4]} 56... Bc5 {[%clk
0:00:05.4]} 57. Be5 {[%clk 0:00:01.7]} 57... Kxa3 {[%clk 0:00:04.2]} 58. Kf5
{[%clk 0:00:02.3]} 58... Be3 {[%clk 0:00:01.4]} 59. g4 {[%clk 0:00:02.3]} 59...
b5 {[%clk 0:00:01.7]} 60. Ke4 {[%clk 0:00:02.9]} 60... Bd2 {[%clk 0:00:01.8]}
61. Kd3 {[%clk 0:00:03.2]} 61... Bg5 {[%clk 0:00:01.8]} 62. Ke4 {[%clk
0:00:03.1]} 62... b4 {[%clk 0:00:02.2]} 63. Kf5 {[%clk 0:00:03.8]} 63... Be7
{[%clk 0:00:02.5]} 64. g5 {[%clk 0:00:03.8]} 64... Bxg5 {[%clk 0:00:01.9]} 65.
Kxg5 {[%clk 0:00:04.7]} 65... b3 {[%clk 0:00:02.5]} 66. Bc3 {[%clk 0:00:04.7]}
66... Ka2 {[%clk 0:00:02.6]} 67. Bf6 {[%clk 0:00:04.9]} 67... Kb1 {[%clk
0:00:03.1]} 68. Kf4 {[%clk 0:00:05.4]} 68... Kc2 {[%clk 0:00:03.7]} 69. Ke3
{[%clk 0:00:05.9]} 69... b2 {[%clk 0:00:04.1]} 70. Bxb2 {[%clk 0:00:05.3]}
1/2-1/2

[Event "Early-Titled-Tuesday-Blitz-May-28-2024"]
[Site "Chess.com"]
[Date "2024.05.28"]
[Round "1"]
[White "GambitGiesbergen"]
[Black "KogotBobra17"]
[Result "0-1"]
[WhiteElo "2352"]
[BlackElo "2656"]
[TimeControl "180+1"]
[EndTime "8:08:41 PDT"]
[Termination "KogotBobra17 won by checkmate"]

1. d4 {[%clk 0:02:50.7]} 1... Nf6 {[%clk 0:02:57]} 2. c4 {[%clk 0:02:48]} 2...
e5 {[%clk 0:02:56.7]} 3. dxe5 {[%clk 0:02:46]} 3... Ng4 {[%clk 0:02:56.7]} 4.
Nc3 {[%clk 0:02:41.3]} 4... Nc6 {[%clk 0:02:50.2]} 5. Nf3 {[%clk 0:02:40.8]}
5... Bc5 {[%clk 0:02:50.3]} 6. e3 {[%clk 0:02:39.7]} 6... O-O {[%clk 0:02:49]}
7. Be2 {[%clk 0:02:35.7]} 7... Re8 {[%clk 0:02:48.8]} 8. a3 {[%clk 0:02:27.7]}
8... a5 {[%clk 0:02:48.6]} 9. Qc2 {[%clk 0:02:20.8]} 9... Ngxe5 {[%clk
0:02:47.8]} 10. b3 {[%clk 0:02:11.2]} 10... Nxf3+ {[%clk 0:02:47.2]} 11. Bxf3
{[%clk 0:02:10.3]} 11... Ne5 {[%clk 0:02:48.1]} 12. Be2 {[%clk 0:02:08.3]} 12...
Qg5 {[%clk 0:02:30]} 13. Bb2 {[%clk 0:01:57.4]} 13... Qxg2 {[%clk 0:02:25]} 14.
O-O-O {[%clk 0:01:55.8]} 14... Qxf2 {[%clk 0:02:25.1]} 15. Kb1 {[%clk
0:01:37.3]} 15... d6 {[%clk 0:02:18.3]} 16. Ne4 {[%clk 0:01:30.1]} 16... Qxe3
{[%clk 0:02:11.6]} 17. Bc1 {[%clk 0:01:23.6]} 17... Qh3 {[%clk 0:02:05.4]} 18.
Rdf1 {[%clk 0:00:51.9]} 18... h6 {[%clk 0:01:34.5]} 19. Bb2 {[%clk 0:00:26.3]}
19... Ba7 {[%clk 0:00:51.7]} 20. c5 {[%clk 0:00:22]} 20... d5 {[%clk 0:00:46.8]}
21. Nc3 {[%clk 0:00:17.2]} 21... c6 {[%clk 0:00:39.7]} 22. Na4 {[%clk
0:00:12.7]} 22... Bg4 {[%clk 0:00:18.6]} 23. Bxg4 {[%clk 0:00:05]} 23... Qxg4
{[%clk 0:00:19.5]} 24. Ka2 {[%clk 0:00:05.8]} 24... Qe4 {[%clk 0:00:18.6]} 25.
Qc3 {[%clk 0:00:04.2]} 25... Rad8 {[%clk 0:00:15.6]} 26. Rhg1 {[%clk 0:00:04.2]}
26... d4 {[%clk 0:00:15.7]} 27. Qg3 {[%clk 0:00:03.8]} 27... Ng6 {[%clk
0:00:16.3]} 28. h4 {[%clk 0:00:02.3]} 28... Bb8 {[%clk 0:00:16.5]} 29. Qf2
{[%clk 0:00:01.2]} 29... Qf4 {[%clk 0:00:14.3]} 30. h5 {[%clk 0:00:02.1]} 30...
Qxf2 {[%clk 0:00:14.4]} 31. Rxf2 {[%clk 0:00:03]} 31... Ne5 {[%clk 0:00:14.4]}
32. Rfg2 {[%clk 0:00:02.9]} 32... g6 {[%clk 0:00:14.9]} 33. hxg6 {[%clk
0:00:03.2]} 33... Nxg6 {[%clk 0:00:15.8]} 34. Rg4 {[%clk 0:00:02.6]} 34... d3
{[%clk 0:00:16.1]} 35. Rd1 {[%clk 0:00:02.2]} 35... d2 {[%clk 0:00:15.9]} 36.
Rg2 {[%clk 0:00:01.9]} 36... Bf4 {[%clk 0:00:16.5]} 37. Bc3 {[%clk 0:00:02.1]}
37... Rd3 {[%clk 0:00:14.8]} 38. Kb2 {[%clk 0:00:01.8]} 38... Re1 {[%clk
0:00:14.4]} 39. Kc2 {[%clk 0:00:02.7]} 39... Rxd1 {[%clk 0:00:14.3]} 40. Kxd1
{[%clk 0:00:03.6]} 40... h5 {[%clk 0:00:10.9]} 41. Bxd2 {[%clk 0:00:04.1]} 41...
h4 {[%clk 0:00:11.5]} 42. Ke2 {[%clk 0:00:03.7]} 42... Rxd2+ {[%clk 0:00:11.5]}
43. Kf3 {[%clk 0:00:04.4]} 43... Rxg2 {[%clk 0:00:12.4]} 44. Kxg2 {[%clk
0:00:05.2]} 44... Bc1 {[%clk 0:00:12]} 45. b4 {[%clk 0:00:04.7]} 45... axb4
{[%clk 0:00:11.3]} 46. axb4 {[%clk 0:00:05.6]} 46... Ba3 {[%clk 0:00:11.9]} 47.
b5 {[%clk 0:00:01.9]} 47... cxb5 {[%clk 0:00:12.8]} 48. Nc3 {[%clk 0:00:01.4]}
48... Bxc5 {[%clk 0:00:12.8]} 49. Nxb5 {[%clk 0:00:01.9]} 49... b6 {[%clk
0:00:13.5]} 50. Nc7 {[%clk 0:00:02.3]} 50... Kg7 {[%clk 0:00:14.2]} 51. Nd5
{[%clk 0:00:03.2]} 51... Kh6 {[%clk 0:00:14.3]} 52. Kh3 {[%clk 0:00:04.1]} 52...
f5 {[%clk 0:00:14.5]} 53. Nf6 {[%clk 0:00:03.4]} 53... Kg5 {[%clk 0:00:15.1]}
54. Nd5 {[%clk 0:00:03.8]} 54... f4 {[%clk 0:00:15.3]} 55. Kg2 {[%clk
0:00:04.5]} 55... Kf5 {[%clk 0:00:16]} 56. Nc3 {[%clk 0:00:04.3]} 56... Kg4
{[%clk 0:00:16.5]} 57. Ne4 {[%clk 0:00:04.7]} 57... h3+ {[%clk 0:00:17.1]} 58.
Kh2 {[%clk 0:00:05.2]} 58... Ne5 {[%clk 0:00:16]} 59. Nf6+ {[%clk 0:00:04.1]}
59... Kf3 {[%clk 0:00:16.3]} 60. Nh5 {[%clk 0:00:04.1]} 60... Ng4+ {[%clk
0:00:15.4]} 61. Kxh3 {[%clk 0:00:04.3]} 61... Nf2+ {[%clk 0:00:15.9]} 62. Kh2
{[%clk 0:00:04.8]} 62... Ng4+ {[%clk 0:00:16.5]} 63. Kh3 {[%clk 0:00:05.2]}
63... Bg1 {[%clk 0:00:15.2]} 64. Ng7 {[%clk 0:00:02.3]} 64... b5 {[%clk
0:00:15.6]} 65. Nf5 {[%clk 0:00:02.2]} 65... b4 {[%clk 0:00:16.2]} 66. Nd6
{[%clk 0:00:02.5]} 66... b3 {[%clk 0:00:16.7]} 67. Nc4 {[%clk 0:00:03.2]} 67...
Ke2 {[%clk 0:00:16.9]} 68. Kxg4 {[%clk 0:00:01.1]} 68... f3 {[%clk 0:00:17.5]}
69. Kg3 {[%clk 0:00:01.5]} 69... f2 {[%clk 0:00:17.3]} 70. Kg2 {[%clk
0:00:01.4]} 70... f1=Q+ {[%clk 0:00:17.2]} 71. Kh1 {[%clk 0:00:02.3]} 71... Bf2+
{[%clk 0:00:15.7]} 72. Kh2 {[%clk 0:00:03.2]} 72... Qg1+ {[%clk 0:00:16.1]} 73.
Kh3 {[%clk 0:00:04.1]} 73... Qg3# {[%clk 0:00:17]} 0-1

[Event "Early-Titled-Tuesday-Blitz-May-28-2024"]
[Site "Chess.com"]
[Date "2024.05.28"]
[Round "1"]
[White "DumbKing75"]
[Black "ab-lsv"]
[Result "1-0"]
[WhiteElo "2640"]
[BlackElo "2331"]
[TimeControl "180+1"]
[EndTime "8:08:45 PDT"]
[Termination "DumbKing75 won on time"]

1. e4 {[%clk 0:02:59.4]} 1... c6 {[%clk 0:02:59.6]} 2. d4 {[%clk 0:02:55.6]}
2... d5 {[%clk 0:03:00.5]} 3. e5 {[%clk 0:02:56.3]} 3... c5 {[%clk 0:03:00.8]}
4. Nf3 {[%clk 0:02:53.4]} 4... Nc6 {[%clk 0:02:58]} 5. dxc5 {[%clk 0:02:46.9]}
5... Bg4 {[%clk 0:02:57.9]} 6. Bb5 {[%clk 0:02:47.5]} 6... e6 {[%clk 0:02:56.1]}
7. Be3 {[%clk 0:02:47.5]} 7... a6 {[%clk 0:02:35.9]} 8. Bxc6+ {[%clk 0:02:24.6]}
8... bxc6 {[%clk 0:02:36.8]} 9. c3 {[%clk 0:02:23.1]} 9... Bxf3 {[%clk
0:02:17.4]} 10. Qxf3 {[%clk 0:02:20.9]} 10... Qb8 {[%clk 0:02:17.4]} 11. b4
{[%clk 0:01:49.2]} 11... Qxe5 {[%clk 0:02:16.4]} 12. O-O {[%clk 0:01:49.6]}
12... Nf6 {[%clk 0:02:12.8]} 13. Bd4 {[%clk 0:01:48.7]} 13... Qe4 {[%clk
0:01:46.2]} 14. Nd2 {[%clk 0:01:44.1]} 14... Qxf3 {[%clk 0:01:45.6]} 15. Nxf3
{[%clk 0:01:45]} 15... Be7 {[%clk 0:01:42.9]} 16. Ne5 {[%clk 0:01:26.2]} 16...
Rc8 {[%clk 0:01:42.3]} 17. a4 {[%clk 0:01:25.3]} 17... O-O {[%clk 0:01:37.4]}
18. f3 {[%clk 0:01:17.3]} 18... Rfd8 {[%clk 0:01:35.3]} 19. Rfe1 {[%clk
0:01:13.1]} 19... h6 {[%clk 0:01:25.9]} 20. Kf2 {[%clk 0:00:55.5]} 20... Nd7
{[%clk 0:01:24.4]} 21. Nd3 {[%clk 0:00:55.4]} 21... Rb8 {[%clk 0:01:08.1]} 22.
Rab1 {[%clk 0:00:46.8]} 22... Rb7 {[%clk 0:01:06.4]} 23. Re2 {[%clk 0:00:42.1]}
23... Bf6 {[%clk 0:01:01]} 24. g3 {[%clk 0:00:39.5]} 24... Rc8 {[%clk
0:00:58.4]} 25. h4 {[%clk 0:00:36.9]} 25... h5 {[%clk 0:00:55.8]} 26. Reb2
{[%clk 0:00:20.7]} 26... Kf8 {[%clk 0:00:53.7]} 27. Ke3 {[%clk 0:00:19.3]} 27...
e5 {[%clk 0:00:47.7]} 28. Nf2 {[%clk 0:00:03.4]} 28... exd4+ {[%clk 0:00:47.4]}
29. cxd4 {[%clk 0:00:04.3]} 29... Re8+ {[%clk 0:00:45.8]} 30. Kd3 {[%clk
0:00:04.8]} 30... Reb8 {[%clk 0:00:44.6]} 31. Rb3 {[%clk 0:00:04.4]} 31... g6
{[%clk 0:00:39]} 32. Nd1 {[%clk 0:00:05]} 32... Bg7 {[%clk 0:00:21.8]} 33. Nc3
{[%clk 0:00:05.5]} 33... Re8 {[%clk 0:00:18]} 34. b5 {[%clk 0:00:05.9]} 34...
axb5 {[%clk 0:00:18]} 35. axb5 {[%clk 0:00:06.3]} 35... cxb5 {[%clk 0:00:17.1]}
36. c6 {[%clk 0:00:07.2]} 36... Rc7 {[%clk 0:00:17]} 37. cxd7 {[%clk 0:00:07.7]}
37... Rxd7 {[%clk 0:00:17.3]} 38. Rxb5 {[%clk 0:00:08.3]} 38... Red8 {[%clk
0:00:17.3]} 39. Ra1 {[%clk 0:00:07.7]} 39... Bf6 {[%clk 0:00:16.4]} 40. Raa5
{[%clk 0:00:08.1]} 40... Rc8 {[%clk 0:00:12.7]} 41. Rxd5 {[%clk 0:00:06.2]}
41... Rcd8 {[%clk 0:00:11.6]} 42. Rxd7 {[%clk 0:00:06.2]} 42... Rxd7 {[%clk
0:00:12.1]} 43. Rd5 {[%clk 0:00:07.1]} 43... Ra7 {[%clk 0:00:11.2]} 44. Rd6
{[%clk 0:00:06.4]} 44... Kg7 {[%clk 0:00:11.2]} 45. Rc6 {[%clk 0:00:05.6]} 45...
Ra3 {[%clk 0:00:11.1]} 46. Rc4 {[%clk 0:00:05.2]} 46... Be7 {[%clk 0:00:08.9]}
47. Ke4 {[%clk 0:00:05.6]} 47... Bb4 {[%clk 0:00:07.8]} 48. Kd3 {[%clk 0:00:03]}
48... Bd6 {[%clk 0:00:06.5]} 49. Ke4 {[%clk 0:00:02.8]} 49... Bb4 {[%clk
0:00:06.5]} 50. Rxb4 {[%clk 0:00:03.2]} 50... Rxc3 {[%clk 0:00:06.7]} 51. d5
{[%clk 0:00:04.1]} 51... Rc1 {[%clk 0:00:05]} 52. Rd4 {[%clk 0:00:03.5]} 52...
Re1+ {[%clk 0:00:05.2]} 53. Kd3 {[%clk 0:00:03.9]} 53... Kf8 {[%clk 0:00:05.6]}
54. d6 {[%clk 0:00:03.7]} 54... Ke8 {[%clk 0:00:06]} 55. Re4+ {[%clk 0:00:04.3]}
55... Rxe4 {[%clk 0:00:04.9]} 56. Kxe4 {[%clk 0:00:05.2]} 56... Kd7 {[%clk
0:00:05.6]} 57. Ke5 {[%clk 0:00:05.5]} 57... Kc6 {[%clk 0:00:03.4]} 58. Kf6
{[%clk 0:00:05.5]} 58... Kxd6 {[%clk 0:00:03.7]} 59. Kxf7 {[%clk 0:00:06.1]} 1-0

[Event "Early-Titled-Tuesday-Blitz-May-28-2024"]
[Site "Chess.com"]
[Date "2024.05.28"]
[Round "1"]
[White "Bykov_Egor"]
[Black "ploxoi"]
[Result "1-0"]
[WhiteElo "2664"]
[BlackElo "2365"]
[TimeControl "180+1"]
[EndTime "8:08:51 PDT"]
[Termination "Bykov_Egor won by resignation"]

1. e4 {[%clk 0:03:00.9]} 1... e6 {[%clk 0:02:59.8]} 2. d4 {[%clk 0:02:59.9]}
2... d5 {[%clk 0:03:00.7]} 3. Nc3 {[%clk 0:02:54.6]} 3... Bb4 {[%clk 0:03:00.4]}
4. e5 {[%clk 0:02:52.4]} 4... Ne7 {[%clk 0:03:00.6]} 5. Qg4 {[%clk 0:02:45.7]}
5... c5 {[%clk 0:02:59.3]} 6. a3 {[%clk 0:02:44.3]} 6... Qa5 {[%clk 0:02:59.5]}
7. Bd2 {[%clk 0:02:00.2]} 7... cxd4 {[%clk 0:02:57.9]} 8. Nb1 {[%clk 0:01:50]}
8... Nbc6 {[%clk 0:02:45.7]} 9. Nf3 {[%clk 0:01:45.7]} 9... Ng6 {[%clk
0:02:39.3]} 10. Bd3 {[%clk 0:01:28]} 10... Bxd2+ {[%clk 0:02:36.5]} 11. Nbxd2
{[%clk 0:01:27.4]} 11... Bd7 {[%clk 0:02:20.3]} 12. b4 {[%clk 0:01:07.6]} 12...
Nxb4 {[%clk 0:02:12.1]} 13. Bxg6 {[%clk 0:01:07.3]} 13... hxg6 {[%clk
0:02:07.8]} 14. O-O {[%clk 0:01:04.8]} 14... Nc6 {[%clk 0:02:01]} 15. Nb3 {[%clk
0:01:02.4]} 15... Qc7 {[%clk 0:01:57.3]} 16. Rfe1 {[%clk 0:00:56.2]} 16... Rh5
{[%clk 0:01:57]} 17. Qf4 {[%clk 0:00:48.1]} 17... Qd8 {[%clk 0:01:40.7]} 18.
Nbxd4 {[%clk 0:00:45.4]} 18... Nxd4 {[%clk 0:01:40.8]} 19. Qxd4 {[%clk
0:00:41.9]} 19... b6 {[%clk 0:01:39.9]} 20. a4 {[%clk 0:00:40.6]} 20... Rc8
{[%clk 0:01:39.4]} 21. a5 {[%clk 0:00:37.4]} 21... Rc4 {[%clk 0:01:39.5]} 22.
Qd2 {[%clk 0:00:28.6]} 22... b5 {[%clk 0:01:25.2]} 23. a6 {[%clk 0:00:25.5]}
23... b4 {[%clk 0:01:20.9]} 24. Reb1 {[%clk 0:00:24.5]} 24... Qb6 {[%clk
0:01:20.6]} 25. Qd3 {[%clk 0:00:19.4]} 25... Rf5 {[%clk 0:01:12.4]} 26. c3
{[%clk 0:00:18.8]} 26... Bb5 {[%clk 0:01:12.4]} 27. Nd4 {[%clk 0:00:09.8]} 27...
Rc5 {[%clk 0:00:51.3]} 28. Qh3 {[%clk 0:00:05.9]} 28... Rh5 {[%clk 0:00:51.2]}
29. Qg3 {[%clk 0:00:04.6]} 29... Rxc3 {[%clk 0:00:48.7]} 30. Qf4 {[%clk
0:00:04.7]} 30... Rc4 {[%clk 0:00:46.9]} 31. Rd1 {[%clk 0:00:03.9]} 31... Qd8
{[%clk 0:00:42.7]} 32. Qe3 {[%clk 0:00:03.9]} 32... Bd7 {[%clk 0:00:35.8]} 33.
Rab1 {[%clk 0:00:03.6]} 33... Qb8 {[%clk 0:00:35.9]} 34. Rdc1 {[%clk 0:00:03.5]}
34... Qxe5 {[%clk 0:00:33.4]} 35. Rxc4 {[%clk 0:00:02.6]} 35... Qxe3 {[%clk
0:00:32.7]} 36. fxe3 {[%clk 0:00:03.1]} 36... dxc4 {[%clk 0:00:33.2]} 37. Rxb4
{[%clk 0:00:04]} 37... Rc5 {[%clk 0:00:32.9]} 38. Kf2 {[%clk 0:00:04]} 38... c3
{[%clk 0:00:32.4]} 39. Ne2 {[%clk 0:00:03.6]} 39... c2 {[%clk 0:00:32.3]} 40.
Nc1 {[%clk 0:00:04.2]} 40... Bb5 {[%clk 0:00:29.9]} 41. Ke1 {[%clk 0:00:04]}
41... Bxa6 {[%clk 0:00:29]} 42. Kd2 {[%clk 0:00:04]} 42... Bf1 {[%clk
0:00:28.8]} 43. g3 {[%clk 0:00:03.4]} 43... Bh3 {[%clk 0:00:29]} 44. Rb8+ {[%clk
0:00:03.7]} 44... Kd7 {[%clk 0:00:27.8]} 45. Rf8 {[%clk 0:00:03.7]} 45... Ke7
{[%clk 0:00:27.7]} 46. Rg8 {[%clk 0:00:04.3]} 46... Kf6 {[%clk 0:00:27.1]} 47.
Ra8 {[%clk 0:00:04.9]} 47... a5 {[%clk 0:00:27]} 48. Rh8 {[%clk 0:00:03]} 48...
Bf5 {[%clk 0:00:26.8]} 49. Rh4 {[%clk 0:00:03.5]} 49... Rd5+ {[%clk 0:00:27.1]}
50. Ke2 {[%clk 0:00:03.4]} 50... Rd1 {[%clk 0:00:27.7]} 51. Nb3 {[%clk
0:00:02.1]} 51... c1=Q {[%clk 0:00:25.4]} 52. Nxc1 {[%clk 0:00:02.8]} 52... Rxc1
{[%clk 0:00:26.3]} 53. e4 {[%clk 0:00:03.7]} 53... Rc4 {[%clk 0:00:25]} 54. e5+
{[%clk 0:00:04.2]} 54... Kxe5 {[%clk 0:00:21.4]} 55. Rxc4 {[%clk 0:00:05.1]}
55... Kd6 {[%clk 0:00:19.3]} 56. Ra4 {[%clk 0:00:05.6]} 56... Ke7 {[%clk
0:00:18.1]} 57. Rxa5 {[%clk 0:00:06.5]} 57... g5 {[%clk 0:00:18.6]} 58. Ke3
{[%clk 0:00:07.4]} 58... Kf6 {[%clk 0:00:19]} 59. Ra7 {[%clk 0:00:07.4]} 59...
Kg6 {[%clk 0:00:19.3]} 60. Kd4 {[%clk 0:00:07.8]} 60... f6 {[%clk 0:00:18.5]}
61. Kc5 {[%clk 0:00:08.2]} 61... Kh6 {[%clk 0:00:14.6]} 62. Kd6 {[%clk
0:00:08.7]} 62... e5 {[%clk 0:00:13.9]} 63. Ke7 {[%clk 0:00:09]} 63... e4 {[%clk
0:00:13.1]} 64. Kf8 {[%clk 0:00:09.7]} 64... g6 {[%clk 0:00:12.4]} 65. Kg8
{[%clk 0:00:09.2]} 65... Kh5 {[%clk 0:00:13]} 66. Kg7 {[%clk 0:00:07.9]} 66...
e3 {[%clk 0:00:06.5]} 67. Re7 {[%clk 0:00:07.7]} 67... Kg4 {[%clk 0:00:03.2]}
68. Rxe3 {[%clk 0:00:08.3]} 68... Kh3 {[%clk 0:00:03.4]} 69. Kxf6 {[%clk
0:00:09]} 69... Kxh2 {[%clk 0:00:03.9]} 70. Kxg5 {[%clk 0:00:09.5]} 70... Kh3
{[%clk 0:00:04.5]} 71. g4+ {[%clk 0:00:09.5]} 71... Kg2 {[%clk 0:00:04.6]} 72.
gxf5 {[%clk 0:00:10.4]} 1-0